bitfinex/quotes_BTCUSD_20241021
["timestamp","ask_amount","ask_price","bid_price","bid_amount"]
[1729542422320,0.01380799,67723.0,67721.0,0.002]
[1729542422521,0.01389636,67722.0,67721.0,0.002]
[1729542422731,0.147656,67725.0,67721.0,0.150664]
[1729542422943,0.0277206,67724.0,67722.0,0.147661]
[1729542423145,0.01382424,67723.0,67722.0,0.147661]
[1729542423613,0.0277206,67723.0,67722.0,0.147661]
[1729542423869,0.01382424,67723.0,67722.0,0.147661]
[1729542424073,0.0277206,67723.0,67722.0,0.147661]
[1729542424278,0.01382424,67723.0,67722.0,0.147661]
[1729542424484,0.0277206,67723.0,67722.0,0.147661]
[1729542424711,0.01382424,67723.0,67722.0,0.147661]
[1729542425130,0.02770239,67723.0,67722.0,0.151661]
[1729542425553,0.02770239,67723.0,67722.0,0.154661]
[1729542426096,0.01387815,67723.0,67722.0,0.154661]
[1729542426296,0.02771874,67723.0,67722.0,0.154661]
[1729542426938,0.01384059,67723.0,67722.0,0.248561]
[1729542427987,0.01384059,67723.0,67722.0,0.154661]
[1729542428803,0.027702,67723.0,67722.0,0.154661]
[1729542429008,0.01384059,67723.0,67722.0,0.154661]
[1729542433772,0.22124383,67730.0,67728.0,0.147648]
[1729542433990,0.02214981,67729.0,67728.0,0.147649]
[1729542434192,0.04985485,67729.0,67728.0,0.147649]
[1729542434403,0.02770504,67729.0,67728.0,0.147649]
[1729542434823,0.04985485,67729.0,67728.0,0.147649]
[1729542435026,0.02770504,67729.0,67728.0,0.147649]
[1729542435686,0.03070504,67729.0,67724.0,0.295314]
[1729542435904,0.01384363,67728.0,67727.0,0.147651]
[1729542436124,0.01384363,67728.0,67726.0,0.147653]
[1729542436343,0.02770504,67727.0,67726.0,0.147653]
[1729542437460,0.02870504,67727.0,67726.0,0.155653]
[1729542438224,0.02870504,67727.0,67726.0,0.161653]
[1729542438499,0.02870504,67727.0,67726.0,0.155653]
[1729542438886,0.02970504,67727.0,67726.0,0.162653]
[1729542441091,0.01586141,67727.0,67726.0,0.162653]
[1729542441301,0.02971002,67727.0,67726.0,0.162653]
[1729542441515,0.09605343,67727.0,67726.0,0.162653]
[1729542442602,0.02971002,67727.0,67726.0,0.162653]
[1729542443041,0.0961732,67727.0,67726.0,0.162653]
[1729542443277,0.09617299,67727.0,67726.0,0.162653]
[1729542444347,0.11833077,67727.0,67726.0,0.162653]
[1729542444536,0.09617299,67727.0,67726.0,0.162653]
[1729542445038,0.09617825,67727.0,67726.0,0.162653]
[1729542446511,0.07402418,67727.0,67726.0,0.162653]
[1729542446714,0.02971528,67727.0,67726.0,0.4597697]
[1729542446920,0.002,67727.0,67726.0,0.60872885]
[1729542447102,0.002,67727.0,67726.0,0.71872885]
[1729542447608,0.001,67727.0,67726.0,0.71072885]
[1729542447823,0.2877068,67736.0,67730.0,0.295289]
[1729542447824,0.01385387,67733.0,67730.0,0.295289]
[1729542448034,0.0443089,67735.0,67734.0,0.147636]
[1729542448257,0.0443089,67735.0,67726.0,0.014]
[1729542448258,0.01289644,67732.0,67726.0,0.014]
[1729542448473,0.04430048,67728.0,67726.0,0.014]
[1729542448688,0.04530048,67727.0,67726.0,0.028]
[1729542448897,0.01484921,67727.0,67726.0,0.014]
[1729542449104,0.02774565,67727.0,67726.0,0.014]
[1729542449760,0.02674565,67727.0,67726.0,0.014]
[1729542450190,0.24084738,67727.0,67726.0,0.014]
[1729542451256,0.24084738,67727.0,67726.0,0.028]
[1729542451490,0.147654,67726.0,67721.0,0.001654]
[1729542451715,0.05815492,67725.0,67721.0,0.001654]
[1729542451995,0.01384921,67724.0,67722.0,0.147661]
[1729542452220,0.02674565,67724.0,67723.0,0.14766]
[1729542452434,0.02674593,67724.0,67723.0,0.14766]
[1729542453599,0.02674593,67724.0,67723.0,0.149314]
[1729542454328,0.02674593,67724.0,67723.0,0.155314]
[1729542454575,0.01289644,67724.0,67723.0,0.161314]
[1729542454818,0.02674657,67724.0,67723.0,0.161314]
[1729542457864,0.07105228,67724.0,67723.0,0.161314]
[1729542458093,0.02674657,67724.0,67723.0,0.161314]
[1729542458560,0.10324657,67724.0,67723.0,0.161314]
[1729542458793,0.14755228,67724.0,67723.0,0.161314]
[1729542460587,0.65407462,67724.0,67723.0,0.013654]
[1729542460822,0.72909635,67724.0,67723.0,0.013654]
[1729542461531,0.72909635,67724.0,67721.0,0.001654]
[1729542461532,0.462062,67722.0,67721.0,0.001654]
[1729542461768,0.82079357,67722.0,67721.0,0.001654]
[1729542462005,0.86966058,67722.0,67721.0,0.001654]
[1729542462666,1.00248904,67722.0,67721.0,0.001654]
[1729542463646,0.86966058,67722.0,67721.0,0.001654]
[1729542464026,0.75466058,67722.0,67721.0,0.001654]
[1729542464283,0.73266058,67722.0,67721.0,0.001654]
[1729542464712,0.73166058,67722.0,67721.0,0.001654]
[1729542464916,0.73966058,67722.0,67721.0,0.002654]
[1729542465121,0.74666058,67722.0,67721.0,0.003654]
[1729542467613,0.70049364,67722.0,67721.0,0.003654]
[1729542467825,0.81107429,67722.0,67721.0,0.003654]
[1729542468244,0.81074805,67722.0,67721.0,0.003654]
[1729542468452,0.7001674,67722.0,67721.0,0.003654]
[1729542468659,0.8107441,67722.0,67721.0,0.003654]
[1729542470353,0.77474525,67722.0,67721.0,0.003654]
[1729542470568,0.6862665,67722.0,67721.0,0.003654]
[1729542470783,0.70007772,67722.0,67721.0,0.003654]
[1729542471433,0.74611571,67722.0,67721.0,0.003654]
[1729542473366,0.74602822,67722.0,67721.0,0.003654]
[1729542473832,0.85654061,67722.0,67721.0,0.003654]
[1729542474038,0.82063144,67722.0,67721.0,0.003654]
[1729542474250,0.84272455,67722.0,67721.0,0.003654]
[1729542474663,0.85653274,67722.0,67721.0,0.003654]
[1729542477989,0.82063144,67722.0,67721.0,0.003654]
[1729542478217,0.85653747,67722.0,67721.0,0.003654]
[1729542478442,0.85645243,67722.0,67721.0,0.003654]
[1729542479790,0.74596901,67722.0,67721.0,0.003654]
[1729542482063,0.75096901,67722.0,67721.0,0.003654]
[1729542482280,0.77396901,67722.0,67721.0,0.003654]
[1729542486924,0.77394735,67722.0,67721.0,0.003654]
[1729542488215,0.77394735,67722.0,67721.0,0.00359084]
[1729542488597,0.77402049,67722.0,67721.0,0.00359084]
[1729542490327,0.005,67721.0,67717.0,0.001652]
[1729542490529,0.23605289,67718.0,67717.0,0.001652]
[1729542490730,0.63014322,67718.0,67717.0,0.001652]
[1729542491134,0.64288657,67718.0,67717.0,0.001652]
[1729542492492,0.64288657,67718.0,67717.0,0.002652]
[1729542493111,0.64688657,67718.0,67717.0,0.002652]
[1729542493319,0.64688657,67718.0,67717.0,0.001652]
[1729542493531,0.56150468,67718.0,67717.0,0.001652]
[1729542494603,0.67198204,67718.0,67717.0,0.001652]
[1729542498082,0.67204173,67718.0,67717.0,0.001652]
[1729542498692,0.56156437,67718.0,67717.0,0.001652]
[1729542501614,0.561566,67718.0,67717.0,0.001652]
[1729542502256,0.561566,67718.0,67717.0,0.1642585]
[1729542502257,0.37587194,67718.0,67717.0,0.1642585]
[1729542502481,0.10182183,67718.0,67717.0,0.175552]
[1729542502699,0.1460487,67718.0,67717.0,0.323225]
[1729542502910,0.1390487,67718.0,67717.0,0.323225]
[1729542503123,0.1390487,67718.0,67717.0,0.175552]
[1729542503337,0.1420487,67718.0,67717.0,0.175552]
[1729542503573,0.07564307,67718.0,67717.0,0.175552]
[1729542503792,0.07464307,67718.0,67717.0,0.175552]
[1729542504004,0.07564307,67718.0,67717.0,0.181552]
[1729542504420,0.22131407,67718.0,67717.0,0.181552]
[1729542504837,0.47334493,67718.0,67717.0,0.104652]
[1729542505537,0.38482168,67718.0,67717.0,0.104652]
[1729542506634,0.49547725,67718.0,67717.0,0.104652]
[1729542507053,0.49547725,67718.0,67717.0,0.012652]
[1729542507282,0.49569904,67718.0,67717.0,0.012652]
[1729542508811,0.48183731,67718.0,67717.0,0.012652]
[1729542509036,0.49568204,67718.0,67717.0,0.012652]
[1729542509723,0.38488937,67718.0,67717.0,0.012652]
[1729542512543,0.38488652,67718.0,67717.0,0.012652]
[1729542512775,0.33884853,67718.0,67717.0,0.012652]
[1729542514572,0.42745183,67718.0,67717.0,0.012652]
[1729542516147,0.41360995,67718.0,67717.0,0.012652]
[1729542516356,0.42745055,67718.0,67717.0,0.012652]
[1729542517303,0.33884725,67718.0,67717.0,0.012652]
[1729542517522,0.49565836,67718.0,67717.0,0.012652]
[1729542519747,0.48181776,67718.0,67717.0,0.012652]
[1729542519961,0.49565952,67718.0,67717.0,0.012652]
[1729542520173,0.33877826,67718.0,67717.0,0.012652]
[1729542520383,0.38491451,67718.0,67717.0,0.012652]
[1729542520683,0.38491524,67718.0,67717.0,0.012652]
[1729542521768,0.37107384,67718.0,67717.0,0.012652]
[1729542521994,0.38491664,67718.0,67717.0,0.012652]
[1729542522407,0.38490385,67718.0,67717.0,0.012652]
[1729542522618,0.42735343,67718.0,67717.0,0.012652]
[1729542523034,0.47349176,67718.0,67717.0,0.012652]
[1729542523256,0.42735343,67718.0,67717.0,0.012652]
[1729542523666,0.45964994,67718.0,67717.0,0.012652]
[1729542523888,0.47349422,67718.0,67717.0,0.012652]
[1729542524097,0.49564507,67718.0,67717.0,0.012652]
[1729542524477,0.47349422,67718.0,67717.0,0.012652]
[1729542525097,0.33876835,67718.0,67717.0,0.012652]
[1729542525301,0.47349563,67718.0,67717.0,0.012652]
[1729542527484,0.45965135,67718.0,67717.0,0.012652]
[1729542527700,0.47350046,67718.0,67717.0,0.012652]
[1729542530732,0.49565904,67718.0,67717.0,0.012652]
[1729542531309,0.45965135,67718.0,67717.0,0.012652]
[1729542531515,0.49567703,67718.0,67717.0,0.012652]
[1729542531716,0.49569037,67718.0,67717.0,0.012652]
[1729542532555,0.49569838,67718.0,67717.0,0.012652]
[1729542533578,0.40710717,67718.0,67717.0,0.012652]
[1729542533797,0.38492931,67718.0,67717.0,0.012652]
[1729542535761,0.38475158,67718.0,67717.0,0.012652]
[1729542537768,0.38478819,67718.0,67717.0,0.012652]
[1729542538722,0.495552,67718.0,67717.0,0.012652]
[1729542538920,0.4955537,67718.0,67717.0,0.012652]
[1729542541197,0.49560692,67718.0,67717.0,0.012652]
[1729542541402,0.48174406,67718.0,67717.0,0.012652]
[1729542541596,0.49560697,67718.0,67717.0,0.012652]
[1729542542657,0.38482167,67718.0,67717.0,0.012652]
[1729542543040,0.40700233,67718.0,67717.0,0.012652]
[1729542545114,0.40700233,67718.0,67717.0,0.012652]
[1729542545324,0.386475,67718.0,67717.0,0.012652]
[1729542545529,0.40865459,67718.0,67717.0,0.012652]
[1729542545796,0.386475,67718.0,67717.0,0.012652]
[1729542546027,0.40865459,67718.0,67717.0,0.012652]
[1729542546225,0.386475,67718.0,67717.0,0.012652]
[1729542546456,0.40865459,67718.0,67717.0,0.012652]
[1729542546696,0.386475,67718.0,67717.0,0.012652]
[1729542546912,0.40865459,67718.0,67717.0,0.012652]
[1729542547124,0.386475,67718.0,67717.0,0.012652]
[1729542547334,0.40865459,67718.0,67717.0,0.012652]
[1729542547540,0.386475,67718.0,67717.0,0.012652]
[1729542547749,0.40865459,67718.0,67717.0,0.012652]
[1729542551280,0.24507317,67718.0,67717.0,0.012652]
[1729542551493,0.3866238,67718.0,67717.0,0.012652]
[1729542551698,0.40880339,67718.0,67717.0,0.012652]
[1729542552995,0.40879789,67718.0,67717.0,0.012652]
[1729542556275,0.40879091,67718.0,67717.0,0.012652]
[1729542563752,0.37275458,67718.0,67717.0,0.012652]
[1729542563954,0.24726037,67718.0,67717.0,0.160325]
[1729542564243,0.24726037,67718.0,67717.0,0.256925]
[1729542564244,0.28149948,67718.0,67717.0,0.256925]
[1729542564445,0.09559415,67718.0,67717.0,0.256925]
[1729542564669,0.09559415,67718.0,67717.0,0.335225]
[1729542564865,0.02908011,67718.0,67717.0,0.335225]
[1729542565133,0.28146094,67718.0,67717.0,0.4578554]
[1729542565341,0.02908011,67718.0,67717.0,0.4578554]
[1729542565540,0.1927493,67718.0,67717.0,0.335225]
[1729542566352,0.02908011,67718.0,67717.0,0.335225]
[1729542567378,0.09557623,67718.0,67717.0,0.335225]
[1729542568624,0.08171574,67718.0,67717.0,0.256925]
[1729542568833,0.24324723,67718.0,67717.0,0.012652]
[1729542570499,0.09557623,67718.0,67717.0,0.012652]
[1729542570711,0.09556319,67718.0,67717.0,0.012652]
[1729542571615,0.0955474,67718.0,67717.0,0.012652]
[1729542572333,0.02906707,67718.0,67717.0,0.012652]
[1729542578032,0.02906379,67718.0,67717.0,0.012652]
[1729542578795,0.07337283,67718.0,67717.0,0.012652]
[1729542581272,0.05952866,67718.0,67717.0,0.160325]
[1729542581722,0.01521962,67718.0,67717.0,0.160325]
[1729542581946,0.05952522,67718.0,67717.0,0.160325]
[1729542584969,0.05952522,67718.0,67717.0,0.012652]
[1729542585594,0.07337083,67718.0,67717.0,0.012652]
[1729542585800,0.07337146,67718.0,67717.0,0.160325]
[1729542586004,0.05952522,67718.0,67717.0,0.160325]
[1729542586211,0.01521962,67718.0,67717.0,0.160325]
[1729542586417,0.07337146,67718.0,67717.0,0.160325]
[1729542586631,0.05952522,67718.0,67717.0,0.160325]
[1729542586830,0.07337146,67718.0,67717.0,0.160325]
[1729542587043,0.05952522,67718.0,67717.0,0.160325]
[1729542587245,0.07337146,67718.0,67717.0,0.160325]
[1729542587454,0.05952522,67718.0,67717.0,0.160325]
[1729542587653,0.07337146,67718.0,67717.0,0.160325]
[1729542587858,0.05952522,67718.0,67717.0,0.160325]
[1729542588061,0.07337146,67718.0,67717.0,0.160325]
[1729542588267,0.05952522,67718.0,67717.0,0.160325]
[1729542588499,0.07337146,67718.0,67717.0,0.160325]
[1729542588723,0.05952522,67718.0,67717.0,0.160325]
[1729542588927,0.07337146,67718.0,67717.0,0.160325]
[1729542589160,0.05952522,67718.0,67717.0,0.160325]
[1729542589379,0.07337146,67718.0,67717.0,0.160325]
[1729542596242,0.0733884,67718.0,67717.0,0.160325]
[1729542596492,0.05952522,67718.0,67717.0,0.160325]
[1729542596857,0.07338841,67718.0,67717.0,0.160325]
[1729542597058,0.0733894,67718.0,67717.0,0.160325]
[1729542598413,0.11959956,67718.0,67717.0,0.160325]
[1729542599616,0.07529297,67718.0,67717.0,0.160325]
[1729542600488,0.07339572,67718.0,67717.0,0.256125]
[1729542600619,0.02908281,67718.0,67717.0,0.160325]
[1729542601047,0.07339423,67718.0,67717.0,0.160325]
[1729542601245,0.07339423,67718.0,67717.0,0.012652]
[1729542601495,0.51564551,67718.0,67717.0,0.012652]
[1729542601699,0.59063808,67718.0,67717.0,0.012652]
[1729542605328,0.59064771,67718.0,67717.0,0.012652]
[1729542606752,0.96085069,67718.0,67717.0,0.012652]
[1729542606958,0.73960686,67718.0,67717.0,0.012652]
[1729542607159,0.87256402,67718.0,67717.0,0.012652]
[1729542609399,0.87250986,67718.0,67717.0,0.012652]
[1729542609594,0.7395527,67718.0,67717.0,0.012652]
[1729542610258,0.57595306,67718.0,67717.0,0.012652]
[1729542610481,0.73949551,67718.0,67717.0,0.012652]
[1729542612855,0.70350537,67718.0,67717.0,0.012652]
[1729542613061,0.73948126,67718.0,67717.0,0.012652]
[1729542616568,0.73947585,67718.0,67717.0,0.012652]
[1729542616773,0.70350537,67718.0,67717.0,0.012652]
[1729542617103,0.71734017,67718.0,67717.0,0.012652]
[1729542617219,0.73947585,67718.0,67717.0,0.012652]
[1729542623932,0.73948414,67718.0,67717.0,0.012652]
[1729542627646,0.73950238,67718.0,67717.0,0.012652]
[1729542627850,0.70350537,67718.0,67717.0,0.012652]
[1729542628262,0.73950238,67718.0,67717.0,0.012652]
[1729542628484,0.40864323,67718.0,67717.0,0.012652]
[1729542628705,0.40864323,67718.0,67717.0,0.1173672]
[1729542628706,0.14168151,67718.0,67717.0,0.1173672]
[1729542628956,0.01521962,67718.0,67717.0,0.254625]
[1729542629755,0.01421962,67718.0,67717.0,0.243625]
[1729542629992,0.01421962,67718.0,67717.0,0.248625]
[1729542630939,0.01421962,67718.0,67717.0,0.243625]
[1729542631167,0.002654,67718.0,67717.0,0.254625]
[1729542631406,0.002654,67718.0,67717.0,0.248625]
[1729542631620,0.002654,67718.0,67717.0,0.243625]
[1729542631855,0.004654,67718.0,67717.0,0.259625]
[1729542632458,0.01740539,67718.0,67717.0,0.259625]
[1729542632649,0.004654,67718.0,67717.0,0.259625]
[1729542632905,0.01740539,67718.0,67717.0,0.259625]
[1729542633107,0.004654,67718.0,67717.0,0.259625]
[1729542633316,0.01740539,67718.0,67717.0,0.259625]
[1729542633487,0.004654,67718.0,67717.0,0.259625]
[1729542633693,0.01740539,67718.0,67717.0,0.259625]
[1729542633869,0.004654,67718.0,67717.0,0.259625]
[1729542634071,0.01740539,67718.0,67717.0,0.259625]
[1729542635355,0.31740539,67718.0,67717.0,0.259625]
[1729542642897,0.31740539,67718.0,67717.0,0.165325]
[1729542646651,0.31740539,67718.0,67717.0,0.262725]
[1729542653834,0.31740539,67718.0,67717.0,0.35719845]
[1729542654040,0.31740539,67718.0,67717.0,0.262725]
[1729542654666,0.31740539,67718.0,67717.0,0.962725]
[1729542655079,0.304654,67718.0,67717.0,0.962725]
[1729542659769,0.304654,67718.0,67717.0,0.977725]
[1729542659967,0.001654,67720.0,67719.0,0.343069]
[1729542660116,0.001654,67720.0,67719.0,0.7309873]
[1729542660324,0.001654,67720.0,67719.0,0.7329873]
[1729542660526,0.001654,67723.0,67722.0,0.164662]
[1729542660729,0.001654,67723.0,67722.0,0.58402115]
[1729542661147,0.001654,67723.0,67722.0,0.58202115]
[1729542661349,0.001654,67723.0,67722.0,0.6505803]
[1729542661963,0.002654,67723.0,67722.0,1.3645803]
[1729542662982,0.002654,67723.0,67722.0,1.3775803]
[1729542664564,0.002654,67723.0,67722.0,1.38720912]
[1729542667601,0.002654,67723.0,67722.0,1.23824997]
[1729542667937,0.002654,67723.0,67722.0,0.984662]
[1729542668138,0.002654,67723.0,67722.0,0.979662]
[1729542669104,0.002654,67723.0,67722.0,0.279662]
[1729542675105,0.002654,67723.0,67722.0,0.462362]
[1729542675329,0.002654,67723.0,67722.0,0.75283276]
[1729542675509,0.002654,67723.0,67722.0,0.75483276]
[1729542677613,0.002654,67723.0,67722.0,0.75419314]
[1729542677762,0.002654,67723.0,67722.0,1.45419314]
[1729542679322,0.001654,67723.0,67722.0,1.44019314]
[1729542679585,0.22124383,67737.0,67736.0,0.245731]
[1729542679784,0.22124383,67737.0,67736.0,0.3386494]
[1729542680015,0.23242079,67737.0,67736.0,0.3386494]
[1729542680218,0.000827,67746.0,67745.0,0.147612]
[1729542680574,0.01200396,67746.0,67745.0,0.147612]
[1729542680732,0.000827,67746.0,67745.0,0.147612]
[1729542680931,0.01200396,67746.0,67745.0,0.2514435]
[1729542682190,0.01200396,67746.0,67745.0,0.2584435]
[1729542682380,0.01200396,67746.0,67745.0,0.2654435]
[1729542683042,0.01200396,67746.0,67745.0,0.161612]
[1729542685824,0.01200396,67746.0,67745.0,0.014]
[1729542686076,0.23481396,67746.0,67745.0,0.014]
[1729542686727,0.24862714,67746.0,67745.0,0.014]
[1729542686934,0.49728629,67746.0,67745.0,0.014]
[1729542687152,0.90878852,67746.0,67745.0,0.014]
[1729542687358,0.32974,67732.0,67731.0,0.22124383]
[1729542687564,0.49251233,67732.0,67731.0,0.22124383]
[1729542687765,0.147655,67725.0,67724.0,0.22124383]
[1729542687965,0.228355,67725.0,67724.0,0.22124383]
[1729542688166,0.14766,67723.0,67722.0,0.000827]
[1729542688390,0.23846,67723.0,67722.0,0.000827]
[1729542688612,0.38741915,67723.0,67722.0,0.000827]
[1729542688822,0.41250852,67723.0,67722.0,0.000827]
[1729542689431,0.41250852,67723.0,67722.0,0.012827]
[1729542690467,0.49560852,67723.0,67722.0,0.012827]
[1729542692369,0.49559101,67723.0,67722.0,0.012827]
[1729542694808,0.49559101,67723.0,67722.0,0.000827]
[1729542694984,0.49924501,67723.0,67722.0,0.000827]
[1729542695195,0.48644275,67723.0,67722.0,0.000827]
[1729542696084,0.147664,67721.0,67720.0,0.000654]
[1729542696320,0.29662315,67721.0,67720.0,0.000654]
[1729542696514,0.30768277,67721.0,67720.0,0.000654]
[1729542696964,0.16001877,67721.0,67717.0,0.001506]
[1729542697136,0.147667,67720.0,67717.0,0.001506]
[1729542697536,0.147667,67720.0,67717.0,0.001306]
[1729542697760,0.01105962,67719.0,67717.0,0.001306]
[1729542697982,0.01105962,67719.0,67717.0,0.000606]
[1729542698283,0.29662415,67721.0,67717.0,0.000606]
[1729542698484,0.01105962,67718.0,67717.0,0.002406]
[1729542698631,0.01105962,67718.0,67717.0,0.000306]
[1729542698833,0.01105962,67718.0,67716.0,0.147379]
[1729542699035,0.29662415,67721.0,67717.0,0.003]
[1729542699235,0.29662415,67721.0,67716.0,0.147279]
[1729542699505,0.147663,67722.0,67717.0,0.147371]
[1729542699706,0.147663,67722.0,67717.0,0.148371]
[1729542699837,0.147663,67722.0,67717.0,0.147771]
[1729542700036,0.147663,67722.0,67717.0,0.146771]
[1729542700370,0.147663,67722.0,67717.0,0.146371]
[1729542700700,0.175554,67723.0,67718.0,0.147669]
[1729542700859,0.175554,67723.0,67716.0,0.001]
[1729542701056,0.175554,67723.0,67721.0,0.147664]
[1729542701296,0.175554,67723.0,67719.0,0.295334]
[1729542701495,0.175554,67723.0,67720.0,0.147666]
[1729542702112,0.175554,67723.0,67717.0,0.295346]
[1729542702277,0.176554,67723.0,67720.0,0.147666]
[1729542702947,0.01105911,67722.0,67719.0,0.147668]
[1729542704732,0.01105911,67722.0,67719.0,0.148668]
[1729542705634,0.01105911,67722.0,67719.0,0.149668]
[1729542707318,0.01088145,67722.0,67719.0,0.150494]
[1729542714013,0.01088145,67722.0,67719.0,0.002826]
[1729542714221,0.02469088,67722.0,67719.0,0.002826]
[1729542715221,0.0247031,67722.0,67719.0,0.002826]
[1729542716192,0.01382165,67721.0,67719.0,0.002826]
[1729542716423,0.01382165,67720.0,67719.0,0.002826]
[1729542716641,0.01105891,67720.0,67719.0,0.002826]
[1729542716865,0.02488056,67720.0,67719.0,0.002826]
[1729542717099,0.02488056,67720.0,67719.0,0.001826]
[1729542717316,0.02488056,67720.0,67719.0,0.003826]
[1729542717544,0.02488056,67720.0,67719.0,0.001826]
[1729542717952,0.02488056,67720.0,67719.0,0.003826]
[1729542718195,0.02488056,67720.0,67719.0,0.005826]
[1729542718688,0.02488056,67720.0,67719.0,0.003826]
[1729542718928,0.02491861,67720.0,67719.0,0.003826]
[1729542719163,0.02491861,67720.0,67719.0,0.006826]
[1729542721709,0.07107846,67720.0,67719.0,0.006826]
[1729542725218,0.05721878,67720.0,67719.0,0.006826]
[1729542725479,0.07107872,67720.0,67719.0,0.006826]
[1729542725658,0.07107876,67720.0,67719.0,0.006826]
[1729542726060,0.07107876,67720.0,67719.0,0.154495]
[1729542727050,0.07107876,67720.0,67719.0,0.006826]
[1729542729374,0.07107912,67720.0,67719.0,0.006826]
[1729542730778,0.11522511,67720.0,67719.0,0.006826]
[1729542730982,0.07107912,67720.0,67719.0,0.006826]
[1729542731412,0.13729811,67720.0,67719.0,0.006826]
[1729542731604,0.07107912,67720.0,67719.0,0.006826]
[1729542731845,0.1374761,67720.0,67719.0,0.006826]
[1729542732323,0.23468214,67720.0,67719.0,0.006826]
[1729542736047,0.23468214,67720.0,67719.0,0.154495]
[1729542736450,0.23468214,67720.0,67719.0,0.006826]
[1729542736778,0.23468279,67720.0,67719.0,0.006826]
[1729542736992,0.23480916,67720.0,67719.0,0.006826]
[1729542737187,0.38247516,67720.0,67719.0,0.006826]
[1729542744278,0.36861417,67720.0,67719.0,0.006826]
[1729542744492,0.38247695,67720.0,67719.0,0.006826]
[1729542746044,0.38247695,67720.0,67719.0,0.003826]
[1729542746283,0.38247695,67720.0,67719.0,0.001826]
[1729542746616,0.38247695,67720.0,67719.0,0.002826]
[1729542747047,0.38247626,67720.0,67719.0,0.002826]
[1729542747461,0.38247626,67720.0,67719.0,0.001826]
[1729542747862,0.38247626,67720.0,67719.0,0.002826]
[1729542748068,0.38247693,67720.0,67719.0,0.002826]
[1729542748377,0.36861348,67720.0,67719.0,0.002826]
[1729542748572,0.38247693,67720.0,67719.0,0.002826]
[1729542750085,0.23481093,67720.0,67719.0,0.002826]
[1729542750303,0.23481093,67720.0,67719.0,0.1950799]
[1729542750498,0.23481093,67720.0,67719.0,0.250195]
[1729542750923,0.27735088,67720.0,67719.0,0.250195]
[1729542751790,0.18865106,67720.0,67719.0,0.250195]
[1729542752064,0.18861634,67720.0,67719.0,0.250195]
[1729542752593,0.11360567,67720.0,67719.0,0.250195]
[1729542752709,0.27728874,67720.0,67719.0,0.250195]
[1729542757556,0.18860543,67720.0,67719.0,0.250195]
[1729542757918,0.17474198,67720.0,67719.0,0.250195]
[1729542758410,0.18859341,67720.0,67719.0,0.250195]
[1729542758557,0.27727672,67720.0,67719.0,0.250195]
[1729542758759,0.27727672,67720.0,67719.0,0.150495]
[1729542759143,0.18859341,67720.0,67719.0,0.150495]
[1729542762469,0.01105891,67720.0,67719.0,0.150495]
[1729542764758,0.07754332,67720.0,67719.0,0.150495]
[1729542766476,0.01105891,67720.0,67719.0,0.150495]
[1729542766653,0.07754002,67720.0,67719.0,0.150495]
[1729542767645,0.07753869,67720.0,67719.0,0.150495]
[1729542768478,0.07753898,67720.0,67719.0,0.150495]
[1729542769172,0.01105891,67720.0,67719.0,0.150495]
[1729542769415,0.07753847,67720.0,67719.0,0.150495]
[1729542772184,0.01105891,67720.0,67719.0,0.150495]
[1729542772420,0.01105891,67720.0,67719.0,0.329795]
[1729542772653,0.001654,67722.0,67719.0,0.182126]
[1729542772890,0.001654,67722.0,67721.0,0.147664]
[1729542773889,0.003654,67722.0,67721.0,0.147664]
[1729542774125,0.002654,67722.0,67721.0,0.147664]
[1729542774366,0.001654,67722.0,67721.0,0.147664]
[1729542774603,0.001654,67722.0,67721.0,0.158664]
[1729542774802,0.001654,67722.0,67721.0,0.168664]
[1729542785183,0.001654,67722.0,67721.0,0.175267]
[1729542793806,0.001654,67722.0,67721.0,0.17821256]
[1729542794059,0.001654,67722.0,67721.0,0.175267]
[1729542802231,0.001654,67722.0,67721.0,0.176094]
[1729542807279,0.0112844,67722.0,67721.0,0.176094]
[1729542809391,0.001654,67722.0,67721.0,0.176094]
[1729542809594,0.001654,67722.0,67721.0,0.61675315]
[1729542809797,0.001654,67722.0,67721.0,0.61875315]
[1729542810423,0.001654,67722.0,67721.0,0.60775315]
[1729542810630,0.001654,67722.0,67721.0,0.62175315]
[1729542810837,0.001654,67722.0,67721.0,1.32175315]
[1729542811040,0.001654,67722.0,67721.0,1.4607123]
[1729542811821,0.001654,67722.0,67721.0,1.4587123]
[1729542812404,0.001654,67722.0,67721.0,1.4727123]
[1729542812916,0.001654,67722.0,67721.0,1.086594]
[1729542813115,0.001654,67722.0,67721.0,0.988094]
[1729542815103,0.001654,67722.0,67721.0,0.983094]
[1729542815566,0.001654,67722.0,67721.0,0.283094]
[1729542816305,0.001654,67722.0,67721.0,0.288094]
[1729542818922,0.001654,67722.0,67721.0,0.42494635]
[1729542820272,0.001654,67722.0,67721.0,0.6809055]
[1729542821807,0.001654,67722.0,67721.0,1.3809055]
[1729542822205,0.001654,67722.0,67721.0,1.3659055]
[1729542823209,0.001654,67722.0,67721.0,0.6659055]
[1729542823832,0.001654,67722.0,67721.0,0.52905315]
[1729542829735,0.001654,67722.0,67721.0,1.22905315]
[1729542833877,0.099,67732.0,67731.0,0.147642]
[1729542835127,0.099,67732.0,67731.0,0.153642]
[1729542835507,0.099,67732.0,67731.0,0.159642]
[1729542836665,0.100654,67732.0,67731.0,0.159642]
[1729542837232,0.001654,67732.0,67731.0,0.159642]
[1729542838080,0.001654,67732.0,67731.0,0.153642]
[1729542838289,0.001654,67732.0,67731.0,0.147642]
[1729542838438,0.001654,67732.0,67731.0,0.159642]
[1729542838640,0.001654,67732.0,67731.0,0.171642]
[1729542855432,0.01134138,67732.0,67731.0,0.171642]
[1729542855651,0.001654,67732.0,67731.0,0.171642]
[1729542855859,0.01134138,67732.0,67731.0,0.171642]
[1729542856031,0.001654,67732.0,67731.0,0.171642]
[1729542856278,0.01134138,67732.0,67731.0,0.171642]
[1729542856481,0.001654,67732.0,67731.0,0.171642]
[1729542859943,0.01134138,67732.0,67731.0,0.171642]
[1729542860144,0.001654,67732.0,67731.0,0.171642]
[1729542860339,0.01134138,67732.0,67731.0,0.171642]
[1729542871836,0.01134138,67732.0,67731.0,0.159642]
[1729542872086,0.01134138,67732.0,67731.0,0.147642]